fUST/lending_fUST_20240822
["ID","MTS","AMOUNT","RATE_DAILY","PERIOD"]
[335518047,1724299839945,-500.0,0.00019178,2]
[335518049,1724299839954,-500.0,0.00019178,2]
[335518051,1724299839964,-500.0,0.00019178,2]
[335518053,1724299839974,-844.9,0.00019178,2]
[335518056,1724299839984,-500.0,0.00019178,2]
[335518058,1724299839994,-500.0,0.00019178,2]
[335518060,1724299840005,-500.0,0.00019178,2]
[335518062,1724299840015,-500.0,0.00019178,2]
[335518064,1724299840025,-500.0,0.00019178,2]
[335518066,1724299840035,-613.86,0.00019178,2]
[335518068,1724299840045,-500.0,0.00019178,2]
[335518070,1724299840057,-619.67,0.00019178,2]
[335518073,1724299840069,-500.0,0.00019178,2]
[335518075,1724299840080,-2054.3,0.00019178,2]
[335518077,1724299840090,-151.0,0.00019178,2]
[335518079,1724299840100,-500.0,0.00019178,2]
[335518081,1724299840112,-151.0,0.00019178,2]
[335518084,1724299840123,-500.0,0.00019178,2]
[335518086,1724299840133,-500.0,0.00019178,2]
[335518088,1724299840142,-500.0,0.00019178,2]
[335518090,1724299840151,-514.87637696,0.00019178,2]
[335518092,1724299840163,-200.0,0.00019178,2]
[335518094,1724299840173,-500.0,0.00019178,2]
[335518096,1724299840182,-500.95745786,0.00019178,2]
[335518098,1724299840192,-500.0,0.00019178,2]
[335518100,1724299840201,-500.0,0.00019178,2]
[335518102,1724299840211,-500.0,0.00019178,2]
[335518104,1724299840220,-500.0,0.00019178,2]
[335518108,1724299840230,-500.0,0.00019178,2]
[335518111,1724299840241,-537.9,0.00019178,2]
[335518114,1724299840253,-500.0,0.00019178,2]
[335518116,1724299840263,-500.0,0.00019178,2]
[335518118,1724299840274,-500.0,0.00019178,2]
[335518120,1724299840284,-500.0,0.00019178,2]
[335518122,1724299840293,-500.0,0.00019178,2]
[335518124,1724299840304,-519.3117229,0.00019178,2]
[335518126,1724299840314,-571.58,0.00019178,2]
[335518128,1724299840325,-500.0,0.00019178,2]
[335518131,1724299840335,-500.0,0.00019178,2]
[335518133,1724299840346,-500.0,0.00019178,2]
[335518135,1724299840356,-729.05,0.00019178,2]
[335518137,1724299840365,-500.0,0.00019178,2]
[335518139,1724299840374,-153.32301,0.00019178,2]
[335518141,1724299840384,-1875.93,0.00019178,2]
[335518143,1724299840393,-266.075258,0.00019178,2]
[335518145,1724299840402,-586.0,0.00019178,2]
[335518147,1724299840412,-500.0,0.00019178,2]
[335518149,1724299840421,-500.0,0.00019178,2]
[335518151,1724299840430,-511.03395608,0.00019178,2]
[335518153,1724299840439,-500.0,0.00019178,2]
[335518155,1724299840449,-500.0,0.00019178,2]
[335518157,1724299840459,-1026.77,0.00019178,2]
[335518159,1724299840469,-638.49,0.00019178,2]
[335518161,1724299840479,-859.92,0.00019178,2]
[335518163,1724299840490,-500.0,0.00019178,2]
[335518165,1724299840499,-500.0,0.00019178,2]
[335518167,1724299840508,-500.0,0.00019178,2]
[335518169,1724299840517,-500.0,0.00019178,2]
[335518171,1724299840527,-500.0,0.00019178,2]
[335518173,1724299840536,-500.0,0.00019178,2]
[335518175,1724299840546,-903.73,0.00019178,2]
[335518177,1724299840555,-510.13872314,0.00019178,2]
[335518179,1724299840563,-500.0,0.00019178,2]
[335518181,1724299840573,-535.27,0.00019178,2]
[335518183,1724299840582,-500.0,0.00019178,2]
[335518185,1724299840591,-500.0,0.00019178,2]
[335518187,1724299840600,-500.0,0.00019178,2]
[335518190,1724299840610,-500.0,0.00019178,2]
[335518192,1724299840619,-500.0,0.00019178,2]
[335518194,1724299840628,-500.0,0.00019178,2]
[335518196,1724299840638,-500.0,0.00019178,2]
[335518198,1724299840647,-500.0,0.00019178,2]
[335518200,1724299840657,-500.0,0.00019178,2]
[335518202,1724299840666,-500.0,0.00019178,2]
[335518204,1724299840675,-500.0,0.00019178,2]
[335518206,1724299840685,-500.0,0.00019178,2]
[335518208,1724299840693,-509.32,0.00019178,2]
[335518210,1724299840703,-500.0,0.00019178,2]
[335518212,1724299840712,-500.0,0.00019178,2]
[335518214,1724299840722,-500.0,0.00019178,2]
[335518216,1724299840731,-2365.95,0.00019178,2]
[335518218,1724299840741,-500.0,0.00019178,2]
[335518220,1724299840751,-496.60609051,0.00019178,2]
[335518222,1724299840760,-500.0,0.00019178,2]
[335518224,1724299840769,-500.0,0.00019178,2]
[335518226,1724299840779,-2542.88,0.00019178,2]
[335518228,1724299840787,-505.56054822,0.00019178,2]
[335518230,1724299840797,-500.0,0.00019178,2]
[335518232,1724299840806,-500.0,0.00019178,2]
[335518234,1724299840816,-500.0,0.00019178,2]
[335518236,1724299840825,-695.3,0.00019178,2]
[335518238,1724299840834,-500.0,0.00019178,2]
[335518240,1724299840843,-500.0,0.00019178,2]
[335518241,1724299840853,-500.0,0.00019178,2]
[335518243,1724299840862,-500.0,0.00019178,2]
[335518245,1724299840871,-500.0,0.00019178,2]
[335518247,1724299840880,-500.0,0.00019178,2]
[335518249,1724299840889,-500.0,0.00019178,2]
[335518251,1724299840898,-500.0,0.00019178,2]
[335518253,1724299840907,-500.0,0.00019178,2]
[335518255,1724299840917,-500.0,0.00019178,2]
[335518257,1724299840926,-500.0,0.00019178,2]
[335518259,1724299840935,-500.0,0.00019178,2]
[335518261,1724299840944,-459.9988217,0.00019178,2]
[335518263,1724299840953,-500.0,0.00019178,2]
[335518265,1724299840962,-500.0,0.00019178,2]
[335518267,1724299840972,-500.0,0.00019178,2]
[335518269,1724299840981,-500.0,0.00019178,2]
[335518271,1724299840990,-500.0,0.00019178,2]
[335518273,1724299840999,-500.0,0.00019178,2]
[335518275,1724299841011,-151.0,0.00019178,2]
[335518277,1724299841020,-153.129118,0.00019178,2]
[335518279,1724299841030,-500.0,0.00019178,2]
[335518281,1724299841038,-151.0,0.00019178,2]
[335518283,1724299841047,-1229.2,0.00019178,2]
[335518285,1724299841057,-500.0,0.00019178,2]
[335518287,1724299841066,-745.34,0.00019178,2]
[335518289,1724299841075,-805.05118051,0.00019178,2]
[335518291,1724299841084,-500.0,0.00019178,2]
[335518293,1724299841093,-500.0,0.00019178,2]
[335518295,1724299841102,-500.0,0.00019178,2]
[335518297,1724299841112,-500.0,0.00019178,2]
[335518299,1724299841121,-500.0,0.00019178,2]
[335518300,1724299841131,-500.0,0.00019178,2]
[335518302,1724299841140,-500.0,0.00019178,2]
[335518304,1724299841149,-500.0,0.00019178,2]
[335518306,1724299841158,-594.98,0.00019178,2]
[335518308,1724299841167,-500.0,0.00019178,2]
[335518310,1724299841176,-168.962649,0.00019178,2]
[335518312,1724299841186,-174.419798,0.00019178,2]
[335518314,1724299841195,-260.94950624,0.00019178,2]
[335518316,1724299841204,-1421.87,0.00019178,2]
[335518318,1724299841215,-168.962649,0.00019178,2]
[335518320,1724299841225,-500.0,0.00019178,2]
[335518322,1724299841234,-500.0,0.00019178,2]
[335518324,1724299841244,-500.0,0.00019178,2]
[335518326,1724299841253,-500.0,0.00019178,2]
[335518328,1724299841263,-500.0,0.00019178,2]
[335518330,1724299841274,-500.0,0.00019178,2]
[335518332,1724299841283,-500.0,0.00019178,2]
[335518334,1724299841292,-500.0,0.00019178,2]
[335518336,1724299841301,-222.056648,0.00019178,2]
[335518338,1724299841311,-500.0,0.00019178,2]
[335518340,1724299841320,-500.0,0.00019178,2]
[335518343,1724299841329,-287.00776487,0.00019178,2]
[335518344,1724299841340,-500.0,0.00019178,2]
[335518347,1724299841349,-151.0,0.00019178,2]
[335518349,1724299841358,-500.0,0.00019178,2]
[335518351,1724299841367,-500.0,0.00019178,2]
[335518353,1724299841377,-255.011118,0.00019178,2]
[335518355,1724299841386,-500.0,0.00019178,2]
[335518357,1724299841395,-255.011118,0.00019178,2]
[335518359,1724299841404,-500.0,0.00019178,2]
[335518361,1724299841413,-500.0,0.00019178,2]
[335518363,1724299841423,-151.0,0.00019178,2]
[335518365,1724299841432,-501.11993912,0.00019178,2]
[335518367,1724299841441,-509.04748953,0.00019178,2]
[335518369,1724299841451,-500.0,0.00019178,2]
[335518371,1724299841460,-154.596156,0.00019178,2]
[335518373,1724299841469,-504.76938422,0.00019178,2]
[335518375,1724299841478,-500.0,0.00019178,2]
[335518376,1724299841488,-151.0,0.00019178,2]
[335518379,1724299841498,-151.0,0.00019178,2]
[335518381,1724299841507,-500.0,0.00019178,2]
[335518382,1724299841517,-500.0,0.00019178,2]
[335518384,1724299841526,-500.0,0.00019178,2]
[335518386,1724299841535,-344.41359493,0.00019178,2]
[335518389,1724299841545,-500.0,0.00019178,2]
[335518391,1724299841554,-500.0,0.00019178,2]
[335518393,1724299841563,-501.27091838,0.00019178,2]
[335518395,1724299841572,-500.0,0.00019178,2]
[335518397,1724299841581,-500.0,0.00019178,2]
[335518399,1724299841590,-500.0,0.00019178,2]
[335518401,1724299841602,-500.0,0.00019178,2]
[335518403,1724299841611,-500.0,0.00019178,2]
[335518405,1724299841621,-199.528847,0.00019178,2]
[335518407,1724299841630,-500.0,0.00019178,2]
[335518409,1724299841640,-295.48877479,0.00019178,2]
[335518411,1724299841649,-604.62,0.00019178,2]
[335518413,1724299841660,-649.4846348,0.00019178,2]
[335518415,1724299841669,-4940.97,0.00019178,2]
[335518417,1724299841679,-500.0,0.00019178,2]
[335518419,1724299841688,-500.0,0.00019178,2]
[335518421,1724299841698,-500.0,0.00019178,2]
[335518423,1724299841707,-500.0,0.00019178,2]
[335518426,1724299841717,-500.0,0.00019178,2]
[335518428,1724299841727,-531.76,0.00019178,2]
[335518430,1724299841737,-500.0,0.00019178,2]
[335518432,1724299841756,-500.0,0.00019178,2]
[335518434,1724299841766,-151.0,0.00019178,2]
[335518436,1724299841775,-500.0,0.00019178,2]
[335518438,1724299841784,-500.0,0.00019178,2]
[335518440,1724299841795,-500.0,0.00019178,2]
[335518442,1724299841805,-500.0,0.00019178,2]
[335518444,1724299841814,-500.0,0.00019178,2]
[335518446,1724299841823,-206.84621049,0.00019178,2]
[335518448,1724299841833,-3511.54,0.00019178,2]
[335518450,1724299841843,-193.29800878,0.00019178,2]
[335518452,1724299841853,-796.12,0.00019178,2]
[335518454,1724299841862,-151.0,0.00019178,2]
[335518456,1724299841870,-500.0,0.00019178,2]
[335518458,1724299841879,-500.0,0.00019178,2]
[335518460,1724299841889,-151.0,0.00019178,2]
[335518462,1724299841899,-5616.34,0.00019178,2]
[335518464,1724299841908,-504.31993508,0.00019178,2]
[335518466,1724299841917,-151.0,0.00019178,2]
[335518468,1724299841927,-500.0,0.00019178,2]
[335518470,1724299841937,-503.10008164,0.00019178,2]
[335518472,1724299841946,-20233.42,0.00019178,2]
[335518474,1724299841956,-500.0,0.00019178,2]
[335518476,1724299841965,-2792.0,0.00019178,2]
[335518478,1724299841974,-152.391377,0.00019178,2]
[335518480,1724299841983,-12079.38,0.00019178,2]
[335518482,1724299841998,-500.0,0.00019178,2]
[335518484,1724299842009,-9511.85,0.00019178,2]
[335518487,1724299842019,-500.0,0.00019178,2]
[335518489,1724299842028,-500.0,0.00019178,2]
[335518491,1724299842038,-294.496312,0.00019178,2]
[335518493,1724299842048,-2008.89,0.00019178,2]
[335518495,1724299842058,-500.0,0.00019178,2]
[335518497,1724299842069,-294.496312,0.00019178,2]
[335518499,1724299842079,-500.0,0.00019178,2]
[335518501,1724299842090,-622.13,0.00019178,2]
[335518504,1724299842101,-500.0,0.00019178,2]
[335518506,1724299842111,-500.0,0.00019178,2]
[335518508,1724299842122,-500.0,0.00019178,2]
[335518510,1724299842132,-500.0,0.00019178,2]
[335518512,1724299842141,-500.0,0.00019178,2]
[335518514,1724299842153,-500.0,0.00019178,2]
[335518517,1724299842164,-500.0,0.00019178,2]
[335518519,1724299842174,-151.0,0.00019178,2]
[335518521,1724299842184,-582.69,0.00019178,2]
[335518523,1724299842194,-500.0,0.00019178,2]
[335518525,1724299842205,-1146.19,0.00019178,2]
[335518527,1724299842215,-500.0,0.00019178,2]
[335518529,1724299842224,-500.0,0.00019178,2]
[335518531,1724299842233,-500.0,0.00019178,2]
[335518533,1724299842244,-500.0,0.00019178,2]
[335518535,1724299842253,-500.0,0.00019178,2]
[335518537,1724299842263,-151.0,0.00019178,2]
[335518539,1724299842274,-500.0,0.00019178,2]
[335518541,1724299842283,-515.89930344,0.00019178,2]
[335518543,1724299842293,-151.0,0.00019178,2]
[335518545,1724299842302,-623.35572492,0.00019178,2]
[335518548,1724299842314,-521.23837596,0.00019178,2]
[335518551,1724299842327,-500.0,0.00019178,2]
[335518554,1724299842336,-500.0,0.00019178,2]
[335518557,1724299842345,-500.0,0.00019178,2]
[335518561,1724299842355,-500.0,0.00019178,2]
[335518564,1724299842365,-500.0,0.00019178,2]
[335518566,1724299842375,-2508.45,0.00019178,2]
[335518568,1724299842384,-500.0,0.00019178,2]
[335518570,1724299842393,-247.30101975,0.00019178,2]
[335518572,1724299842402,-2530.18,0.00019178,2]
[335518573,1724299842412,-151.694994,0.00019178,2]
[335518574,1724299842422,-891.44,0.00019178,2]
[335518575,1724299842432,-500.0,0.00019178,2]
[335518576,1724299842441,-500.0,0.00019178,2]
[335518577,1724299842451,-500.0,0.00019178,2]
[335518578,1724299842460,-500.0,0.00019178,2]
[335518579,1724299842469,-502.81157133,0.00019178,2]
[335518682,1724299843466,-378.35842867,0.00019178,2]
[335518684,1724299843477,-500.0,0.00019178,2]
[335518686,1724299843488,-500.0,0.00019178,2]
[335518688,1724299843500,-1537.97,0.00019178,2]
[335518690,1724299843510,-500.0,0.00019178,2]
[335518692,1724299843522,-150.821753,0.00019178,2]
[335518694,1724299843531,-500.0,0.00019178,2]
[335518696,1724299843541,-500.0,0.00019178,2]
[335518698,1724299843551,-253.9775951,0.00019178,2]
[335518700,1724299843560,-500.0,0.00019178,2]
[335518703,1724299843571,-500.0,0.00019178,2]
[335518705,1724299843583,-633.62,0.00019178,2]
[335518707,1724299843593,-500.0,0.00019178,2]
[335518709,1724299843603,-500.0,0.00019178,2]
[335518711,1724299843616,-500.0,0.00019178,2]
[335518713,1724299843626,-643.92652709,0.00019178,2]
[335518715,1724299843637,-500.0,0.00019178,2]
[335518718,1724299843647,-500.0,0.00019178,2]
[335518720,1724299843659,-500.0,0.00019178,2]
[335518722,1724299843671,-500.0,0.00019178,2]
[335518724,1724299843683,-151.0,0.00019178,2]
[335518726,1724299843695,-1774.87,0.00019178,2]
[335518727,1724299843707,-500.0,0.00019178,2]
[335518728,1724299843719,-3125.92,0.00019178,2]
[335518729,1724299843730,-604.04,0.00019178,2]
[335518730,1724299843743,-500.0,0.00019178,2]
[335518731,1724299843752,-151.0,0.00019178,2]
[335518732,1724299843763,-500.0,0.00019178,2]
[335518733,1724299843773,-500.0,0.00019178,2]
[335518734,1724299843782,-503.22063749,0.00019178,2]
[335518735,1724299843791,-500.0,0.00019178,2]
[335518736,1724299843801,-500.0,0.00019178,2]
[335518737,1724299843810,-500.0,0.00019178,2]
[335518738,1724299843820,-500.0,0.00019178,2]
[335518739,1724299843829,-500.0,0.00019178,2]
[335518740,1724299843838,-500.0,0.00019178,2]
[335518741,1724299843847,-500.0,0.00019178,2]
[335518742,1724299843857,-2245.11,0.00019178,2]
[335518743,1724299843866,-1582.72,0.00019178,2]
[335518744,1724299843876,-500.0,0.00019178,2]
[335518745,1724299843886,-1080.35,0.00019178,2]
[335518747,1724299843895,-500.0,0.00019178,2]
[335518749,1724299843905,-500.0,0.00019178,2]
[335518751,1724299843915,-500.0,0.00019178,2]
[335518753,1724299843924,-151.0,0.00019178,2]
[335518754,1724299843933,-503.44546172,0.00019178,2]
[335518756,1724299843943,-500.0,0.00019178,2]
[335518758,1724299843952,-500.0,0.00019178,2]
[335518759,1724299843962,-653.84,0.00019178,2]
[335518761,1724299843972,-663.61,0.00019178,2]
[335518762,1724299843981,-500.0,0.00019178,2]
[335518763,1724299843991,-169.545833,0.00019178,2]
[335518764,1724299844010,-500.0,0.00019178,2]
[335518765,1724299844022,-500.0,0.00019178,2]
[335518766,1724299844032,-511.43,0.00019178,2]
[335518767,1724299844043,-503.58993523,0.00019178,2]
[335518768,1724299844052,-169.545833,0.00019178,2]
[335518769,1724299844062,-500.0,0.00019178,2]
[335518770,1724299844072,-500.0,0.00019178,2]
[335518771,1724299844082,-500.0,0.00019178,2]
[335518772,1724299844093,-9406.78,0.00019178,2]
[335518773,1724299844104,-500.0,0.00019178,2]
[335518774,1724299844114,-500.0,0.00019178,2]
[335518775,1724299844124,-500.0,0.00019178,2]
[335518776,1724299844134,-441.34901224,0.00019178,2]
[335518777,1724299844145,-500.0,0.00019178,2]
[335518778,1724299844155,-500.0,0.00019178,2]
[335518779,1724299844165,-667.07,0.00019178,2]
[335518780,1724299844175,-500.0,0.00019178,2]
[335518781,1724299844184,-199.057772,0.00019178,2]
[335518782,1724299844194,-500.0,0.00019178,2]
[335518783,1724299844205,-834.7,0.00019178,2]
[335518784,1724299844216,-765.48,0.00019178,2]
[335518785,1724299844226,-151.0,0.00019178,2]
[335518786,1724299844236,-500.0,0.00019178,2]
[335518787,1724299844248,-500.0,0.00019178,2]
[335518788,1724299844259,-199.057772,0.00019178,2]
[335518789,1724299844273,-500.0,0.00019178,2]
[335518790,1724299844283,-500.0,0.00019178,2]
[335518791,1724299844293,-500.0,0.00019178,2]
[335518792,1724299844303,-500.0,0.00019178,2]
[335518793,1724299844313,-500.0,0.00019178,2]
[335518794,1724299844323,-500.0,0.00019178,2]
[335518795,1724299844333,-500.0,0.00019178,2]
[335518796,1724299844343,-500.0,0.00019178,2]
[335518797,1724299844353,-500.0,0.00019178,2]
[335518798,1724299844363,-900.77,0.00019178,2]
[335518799,1724299844372,-2092.37,0.00019178,2]
[335518800,1724299844383,-151.0,0.00019178,2]
[335518801,1724299844392,-676.3,0.00019178,2]
[335518802,1724299844402,-163.959734,0.00019178,2]
[335518803,1724299844414,-151.0,0.00019178,2]
[335518804,1724299844427,-501.29704042,0.00019178,2]
[335518806,1724299844440,-500.0,0.00019178,2]
[335518808,1724299844451,-151.0,0.00019178,2]
[335518810,1724299844462,-500.0,0.00019178,2]
[335518811,1724299844472,-500.0,0.00019178,2]
[335518812,1724299844482,-508.22113555,0.00019178,2]
[335518814,1724299844492,-500.0,0.00019178,2]
[335518815,1724299844504,-500.0,0.00019178,2]
[335518816,1724299844515,-151.0,0.00019178,2]
[335518817,1724299844527,-500.0,0.00019178,2]
[335518818,1724299844537,-151.0,0.00019178,2]
[335518819,1724299844549,-500.0,0.00019178,2]
[335518820,1724299844560,-151.0,0.00019178,2]
[335518821,1724299844571,-500.0,0.00019178,2]
[335518822,1724299844584,-151.0,0.00019178,2]
[335518823,1724299844595,-500.0,0.00019178,2]
[335518824,1724299844604,-290.43359832,0.00019178,2]
[335518825,1724299845236,-634.35640168,0.00019178,2]
[335518826,1724299845247,-508.07,0.00019178,2]
[335518827,1724299845257,-152.598414,0.00019178,2]
[335518829,1724299845477,-151.0,0.00019178,2]
[335518830,1724299845488,-3577.9,0.00019178,2]
[335518831,1724299845498,-1034.94,0.00019178,2]
[335518832,1724299845510,-500.0,0.00019178,2]
[335518833,1724299845520,-500.0,0.00019178,2]
[335518834,1724299845530,-500.0,0.00019178,2]
[335518835,1724299845541,-500.0,0.00019178,2]
[335518836,1724299845551,-807.61,0.00019178,2]
[335518837,1724299845561,-151.0,0.00019178,2]
[335518838,1724299845571,-500.0,0.00019178,2]
[335518839,1724299845583,-500.0,0.00019178,2]
[335518840,1724299845595,-500.0,0.00019178,2]
[335518841,1724299845606,-521.09,0.00019178,2]
[335518842,1724299845617,-741.48,0.00019178,2]
[335518843,1724299845627,-500.0,0.00019178,2]
[335518844,1724299845638,-500.0,0.00019178,2]
[335518845,1724299845648,-151.0,0.00019178,2]
[335518846,1724299845659,-500.0,0.00019178,2]
[335518847,1724299845670,-500.0,0.00019178,2]
[335518848,1724299845680,-3159.86,0.00019178,2]
[335518849,1724299845690,-6298.09,0.00019178,2]
[335518850,1724299845701,-6298.09,0.00019178,2]
[335518851,1724299845712,-6298.09,0.00019178,2]
[335518852,1724299845723,-6298.09,0.00019178,2]
[335518853,1724299845733,-1134.35,0.00019178,2]
[335518854,1724299845743,-6298.09,0.00019178,2]
[335518855,1724299845753,-514.83690292,0.00019178,2]
[335518856,1724299845763,-6298.09,0.00019178,2]
[335518857,1724299845772,-6298.09,0.00019178,2]
[335518858,1724299845781,-4932.27458939,0.00019178,2]
[335518884,1724300298025,5000.0,9.906e-05,2]
[335518885,1724300306531,5000.0,9.906e-05,2]
[335518886,1724300314849,5000.0,9.906e-05,2]
[335518887,1724300322614,392.54609219,9.906e-05,2]
[335518888,1724300331198,5000.0,9.906e-05,2]
[335518890,1724300361504,5000.0,9.906e-05,2]
[335518891,1724300369409,217.55707659,9.906e-05,2]
[335518892,1724300371668,3620.79797906,9.906e-05,2]
[335518893,1724300373126,405.53882549,9.906e-05,2]
[335518894,1724300377986,1549.32989976,9.906e-05,2]
[335518895,1724300378084,465.45760021,9.906e-05,2]
[335518896,1724300381949,19515.85093848,9.906e-05,2]
[335518897,1724300392036,727.09210349,9.906e-05,2]
[335518898,1724300445533,4720.37412615,9.906e-05,2]
[335518899,1724300481670,3620.79797906,9.906e-05,2]
[335518900,1724300484006,10909.77830602,9.906e-05,2]
[335518901,1724300484041,8606.07263246,9.906e-05,2]
[335518903,1724300494131,405.53882549,9.906e-05,2]
[335518904,1724300517440,377.32383277,9.906e-05,2]
[335518905,1724300528577,939.08236877,9.906e-05,2]
[335518906,1724300531401,218.74217155,9.906e-05,2]
[335518907,1724300531976,2113.01506767,9.906e-05,2]
[335518908,1724300533236,5604.19479331,9.906e-05,2]
[335518909,1724300551486,4725.95593576,9.906e-05,2]
[335518910,1724300559581,2666.10312637,9.899e-05,2]
[335518911,1724300575543,158.74359484,9.906e-05,2]
[335518912,1724300588961,19515.85093848,9.906e-05,2]
[335518913,1724300589662,3620.79797906,9.906e-05,2]
[335518915,1724300622116,267.38030699,9.906e-05,2]
[335518916,1724300639852,201.0345078,9.358e-05,2]
[335518917,1724300682679,355.22922912,9.358e-05,2]
[335518919,1724300706978,7922.01369564,9.358e-05,2]
[335518920,1724300738470,250.0,9.428e-05,2]
[335518921,1724300738863,250.0,9.454e-05,2]
[335518922,1724300739098,250.0,9.48e-05,2]
[335518924,1724300739304,250.0,9.506e-05,2]
[335518925,1724300739560,250.0,9.532e-05,2]
[335518926,1724300739767,250.0,9.558e-05,2]
[335518927,1724300739982,250.0,9.583e-05,2]
[335518928,1724300740196,250.0,9.609e-05,2]
[335518929,1724300740593,250.0,9.635e-05,2]
[335518930,1724300740811,250.0,9.661e-05,2]
[335518931,1724300741048,250.0,9.687e-05,2]
[335518932,1724300741307,250.0,9.713e-05,2]
[335518933,1724300741548,250.0,9.739e-05,2]
[335518934,1724300741774,250.0,9.764e-05,2]
[335518935,1724300741976,250.0,9.79e-05,2]
[335518936,1724300742192,250.0,9.816e-05,2]
[335518937,1724300742407,250.0,9.842e-05,2]
[335518938,1724300742616,250.0,9.868e-05,2]
[335518939,1724300742843,250.0,9.894e-05,2]
[335518944,1724300848298,2620.6062953,9.285e-05,2]
[335518949,1724300974644,300.21774645,9.906e-05,2]
[335518950,1724300982564,273.37336231,9.906e-05,2]
[335518952,1724300983850,24900.0,9.02e-05,2]
[335518953,1724301005903,897.2598538,9.02e-05,2]
[335518954,1724301019968,11855.8785754,9.092e-05,2]
[335518967,1724301031815,-250.0,9.92e-05,2]
[335518968,1724301031826,-188.6196501,9.939e-05,2]
[335518969,1724301031836,-218.13734486,9.999e-05,2]
[335518970,1724301031846,-300.0,9.999e-05,2]
[335518971,1724301031856,-300.0,9.999e-05,2]
[335518972,1724301031867,-22989.95492431,0.0001,5]
[335518989,1724301037913,-1647.73492659,9.999e-05,2]
[335518991,1724301037924,-320160.03529487,0.0001,5]
[335518993,1724301037934,-34539.53864766,0.0001,2]
[335518995,1724301037943,-223.59213738,0.0001026,2]
[335518997,1724301037954,-3093.60860983,0.0001026,2]
[335518999,1724301037964,-15522.68421502,0.00010373,2]
[335519002,1724301037974,-165.921457,0.00010473,2]
[335519004,1724301037984,-165.921457,0.00010477,2]
[335519006,1724301037997,-165.921457,0.00010481,2]
[335519009,1724301038007,-165.921457,0.00010486,2]
[335519012,1724301038017,-165.921457,0.0001049,2]
[335519014,1724301038029,-165.921457,0.00010494,2]
[335519016,1724301038039,-165.921457,0.00010498,2]
[335519018,1724301038049,-165.921457,0.00010502,2]
[335519021,1724301038059,-165.921457,0.00010506,2]
[335519023,1724301038069,-165.921457,0.0001051,2]
[335519024,1724301038079,-165.921457,0.00010514,2]
[335519025,1724301038088,-165.921457,0.00010518,2]
[335519026,1724301038097,-165.921457,0.00010522,2]
[335519027,1724301038108,-165.921457,0.00010526,2]
[335519028,1724301038118,-2596.21956265,0.00010544,2]
[335519029,1724301038129,-2282.92421799,0.00010544,3]
[335519030,1724301038139,-9662.24242138,0.00010544,2]
[335519031,1724301038148,-154.74467129,0.00010544,2]
[335519032,1724301038157,-288.3725178,0.00010544,2]
[335519033,1724301038168,-154.83007111,0.00010739,2]
[335519034,1724301038178,-154.962787,0.00010739,2]
[335519035,1724301038188,-196.86784155,0.00010739,2]
[335519036,1724301038198,-812.81213325,0.00010739,2]
[335519037,1724301038208,-228.5206563,0.00010739,2]
[335519039,1724301038218,-155.63400275,0.00010739,2]
[335519041,1724301038227,-269.99102828,0.00010739,7]
[335519043,1724301038238,-7015.48027214,0.00010739,2]
[335519045,1724301038247,-15522.68421499,0.00010752,2]